fUSD/lending_fUSD_20240624
["ID","MTS","AMOUNT","RATE_DAILY","PERIOD"]
[330271935,1719219198571,-634.1,0.00020547,4]
[330271936,1719219198603,-581.28,0.00020547,4]
[330271937,1719219198636,-500.0,0.00020547,4]
[330271938,1719219198671,-508.63,0.00020547,4]
[330271939,1719219198705,-1350.85,0.00020547,4]
[330271940,1719219198737,-514.55,0.00020547,4]
[330271941,1719219198768,-556.03,0.00020547,4]
[330271942,1719219198801,-650.34,0.00020547,4]
[330271943,1719219198834,-776.13,0.00020547,4]
[330271944,1719219198866,-500.0,0.00020547,4]
[330271945,1719219198898,-512.0,0.00020547,4]
[330271946,1719219198931,-514.4,0.00020547,4]
[330271947,1719219198964,-500.0,0.00020547,4]
[330271948,1719219198999,-840.12,0.00020547,4]
[330271949,1719219199034,-538.15,0.00020547,4]
[330271950,1719219199070,-500.0,0.00020547,4]
[330271951,1719219199104,-1276.05,0.00020547,4]
[330271952,1719219199139,-738.89,0.00020547,4]
[330271953,1719219199172,-490.18596407,0.00020547,4]
[330271954,1719219199204,-500.0,0.00020547,4]
[330271955,1719219199238,-243.51931538,0.00020547,4]
[330271957,1719219209176,290.57,0.00025963,120]
[330271958,1719219216524,200.0,0.0002947,30]
[330271959,1719219216627,1807.62997774,0.0002947,30]
[330271960,1719219246655,1807.62997774,0.0002947,30]
[330271963,1719219281296,1000.0,0.0002947,30]
[330271964,1719219283334,151.0,0.00021416,120]
[330271965,1719219301743,1000.0,0.0002947,30]
[330271966,1719219302199,1000.0,0.0002947,30]
[330271967,1719219302974,452.19047352,0.0002947,30]
[330271968,1719219303434,1000.0,0.0002947,30]
[330271969,1719219304425,1000.0,0.0002947,30]
[330271971,1719219305550,1000.0,0.0002947,30]
[330271972,1719219306660,1000.0,0.0002947,30]
[330271973,1719219307806,1000.0,0.0002947,30]
[330271974,1719219308913,1000.0,0.0002947,30]
[330271975,1719219311474,539.32339157,0.0002947,30]
[330271977,1719219329682,1000.0,0.0002947,60]
[330271978,1719219342502,1000.0,0.0002947,60]
[330271979,1719219355430,1000.0,0.0002947,30]
[330271980,1719219366407,500.0,0.0002947,30]
[330271981,1719219366871,166.83,0.0002947,30]
[330271982,1719219368123,1000.0,0.0002947,30]
[330271983,1719219380949,1000.0,0.0002947,30]
[330271984,1719219393774,1000.0,0.0002947,30]
[330271985,1719219406595,1000.0,0.0002947,30]
[330271986,1719219419410,1000.0,0.0002947,120]
[330271988,1719219432217,1000.0,0.0002947,60]
[330271989,1719219445034,1000.0,0.0002947,120]
[330271990,1719219457847,1000.0,0.0002947,120]
[330271991,1719219465081,190.0,0.0002947,30]
[330271992,1719219471015,1000.0,0.0002947,30]
[330271993,1719219483743,1000.0,0.0002947,60]
[330271994,1719219495259,200.0,0.0002947,30]
[330271995,1719219496317,1000.0,0.0002947,30]
[330271997,1719219508762,1000.0,0.000294,30]
[330271998,1719219509141,1000.0,0.000294,30]
[330271999,1719219509187,1000.0,0.000294,30]
[330272001,1719219509541,1000.0,0.000294,30]
[330272002,1719219510112,1000.0,0.000294,30]
[330272003,1719219510841,1000.0,0.000294,30]
[330272004,1719219511468,1000.0,0.000294,30]
[330272005,1719219512035,1000.0,0.000294,30]
[330272006,1719219512332,1000.0,0.000294,30]
[330272007,1719219513781,1000.0,0.000294,30]
[330272008,1719219514242,1000.0,0.000294,30]
[330272009,1719219515140,1000.0,0.000294,30]
[330272010,1719219515262,1000.0,0.000294,30]
[330272011,1719219515597,1000.0,0.000294,30]
[330272012,1719219515994,1000.0,0.000294,30]
[330272013,1719219516399,1000.0,0.000294,30]
[330272014,1719219516805,1000.0,0.000294,30]
[330272015,1719219517358,1000.0,0.000294,30]
[330272016,1719219517761,1000.0,0.000294,30]
[330272017,1719219518149,1000.0,0.000294,30]
[330272018,1719219519164,1000.0,0.000294,30]
[330272019,1719219519518,1000.0,0.000294,30]
[330272020,1719219519890,1252.381689,0.000294,30]
[330272021,1719219521966,1000.0,0.000294,30]
[330272023,1719219534777,1000.0,0.000294,60]
[330272024,1719219540470,1000.0,0.000294,30]
[330272025,1719219542015,1000.0,0.000294,30]
[330272026,1719219542616,798.69866002,0.000294,30]
[330272027,1719219547592,1000.0,0.000294,30]
[330272028,1719219560422,1000.0,0.000294,30]
[330272029,1719219573277,1000.0,0.000294,30]
[330272030,1719219586051,1000.0,0.000294,30]
[330272031,1719219589157,3077.99999999,0.000294,30]
[330272032,1719219598872,1000.0,0.000294,30]
[330272033,1719219611701,1000.0,0.000294,60]
[330272034,1719219624831,1000.0,0.000294,30]
[330272035,1719219637690,1000.0,0.000294,30]
[330272036,1719219650488,1000.0,0.000294,30]
[330272037,1719219656239,153.922203,0.000294,30]
[330272038,1719219657602,153.922203,0.000294,30]
[330272039,1719219663287,1000.0,0.000294,30]
[330272040,1719219676133,1000.0,0.000294,30]
[330272041,1719219688953,1000.0,0.000294,30]
[330272061,1719219701787,1000.0,0.000294,30]
[330272063,1719219714605,1000.0,0.000294,60]
[330272064,1719219727435,1000.0,0.000294,30]
[330272065,1719219740639,1000.0,0.000294,120]
[330272066,1719219753082,1000.0,0.000294,120]
[330272067,1719219763852,2000.0,0.000294,30]
[330272068,1719219764313,2000.0,0.000294,30]
[330272069,1719219764730,2000.0,0.000294,30]
[330272070,1719219765158,1016.199999,0.000294,30]
[330272071,1719219765896,1000.0,0.000294,60]
[330272072,1719219778715,1000.0,0.000294,60]
[330272073,1719219791790,1000.0,0.000294,60]
[330272074,1719219804344,1000.0,0.00029413,30]
[330272075,1719219817190,1000.0,0.00029413,30]
[330272077,1719219830503,1000.0,0.00029413,60]
[330272078,1719219844704,1000.0,0.00029413,60]
[330272079,1719219858956,1039.46,0.00029413,120]
[330272080,1719219891891,151.0,0.00020594,120]
[330272083,1719220065152,190.0,0.00029413,30]
[330272084,1719220112394,150.0,0.00029416,30]
[330272091,1719220205717,151.0,0.00020868,120]
[330272092,1719220225539,5536.16424464,0.00029416,30]
[330272094,1719220232962,-152.12,0.00015798,2]
[330272096,1719220232973,-151.51,0.000158,2]
[330272098,1719220232983,-151.72,0.00015805,2]
[330272100,1719220232993,-152.59,0.0001581,2]
[330272101,1719220233002,-152.54,0.00015814,2]
[330272102,1719220233011,-151.95,0.00015817,2]
[330272103,1719220233020,-151.03,0.00015821,2]
[330272104,1719220233030,-150.51,0.00015822,2]
[330272105,1719220233040,-452.51,0.00015827,2]
[330272106,1719220233050,-152.11,0.00016952,2]
[330272107,1719220233059,-234.1,0.00017116,2]
[330272108,1719220233069,-242.65,0.00017394,2]
[330272109,1719220233078,-150.0,0.00017439,2]
[330272110,1719220233088,-7884.02,0.0001744,2]
[330272111,1719220233097,-164.33,0.00017548,2]
[330272112,1719220233106,-234.1,0.0001765,2]
[330272113,1719220233116,-250.0,0.00017677,2]
[330272114,1719220233125,-200.0,0.00017766,2]
[330272115,1719220233135,-172.54,0.0001778,2]
[330272116,1719220233144,-1000.0,0.00018063,2]
[330272117,1719220233153,-452.51,0.00018091,2]
[330272118,1719220233162,-177.51,0.00018112,2]
[330272119,1719220233172,-152.47,0.00018163,2]
[330272120,1719220233181,-151.3,0.00018166,2]
[330272121,1719220233192,-151.62,0.00018171,2]
[330272122,1719220233201,-150.41,0.00018173,2]
[330272123,1719220233211,-150.58,0.00018178,2]
[330272124,1719220233221,-234.1,0.00018183,2]
[330272125,1719220233231,-234.1,0.00018717,2]
[330272126,1719220233240,-153.6,0.00018868,2]
[330272127,1719220233250,-150.78,0.0001887,2]
[330272128,1719220233259,-153.84,0.00018875,2]
[330272129,1719220233269,-151.08,0.00018877,2]
[330272130,1719220233278,-290.57,0.00018882,2]
[330272131,1719220233287,-212.0465,0.00018978,2]
[330272132,1719220233297,-7196.9835,0.00018978,2]
[330272133,1719220233307,-2750.2985,0.00018978,2]
[330272134,1719220233316,-589.74225262,0.00018999,2]
[330272135,1719220233325,-296.51463104,0.0001906,2]
[330272136,1719220233335,-296.51463104,0.0001906,2]
[330272137,1719220233344,-1000.0,0.00019061,2]
[330272138,1719220233354,-393.37866053,0.00019068,2]
[330272140,1719220233363,-1577.44664823,0.00019078,2]
[330272142,1719220233372,-366.62136337,0.00019078,2]
[330272143,1719220233382,-2470.67449333,0.00019078,2]
[330272144,1719220233394,-6495.743034,0.00019078,2]
[330272145,1719220233405,-598.795,0.00019078,2]
[330272146,1719220233460,-434.78747267,0.00019078,2]
[330272147,1719220233469,-73.68451447,0.00019078,2]
[330272148,1719220233481,-218.91398553,0.00019078,2]
[330272149,1719220233490,-1000.0,0.00019078,2]
[330272150,1719220233500,-44217.17089852,0.00019078,2]
[330272152,1719220233600,-471.75317277,0.00019078,2]
[330272154,1719220233611,-8419.14754862,0.00019078,2]
[330272157,1719220238575,-3231.85735908,0.00019078,2]
[330272158,1719220240050,-360.23097539,0.00019078,2]
[330272159,1719220240063,-9052.65177567,0.00019078,2]
[330272160,1719220240242,-2359.25057629,0.00019078,2]
[330272161,1719220240253,-10119.27688512,0.00019078,2]
[330272162,1719220240265,-644.83982441,0.00019078,2]
[330272163,1719220240450,-805.27464937,0.00019078,2]
[330272164,1719220240462,-4641.02724284,0.00019078,2]
[330272189,1719220243507,-932.77725112,0.00019078,2]
[330272190,1719220244050,-3745.10172195,0.00019078,2]
[330272191,1719220244061,-10999.64011885,0.00019078,2]
[330272192,1719220244070,-2500.0,0.00019078,2]
[330272193,1719220244079,-152.53,0.00019173,2]
[330272194,1719220244088,-543.96475932,0.00019177,2]
[330272195,1719220244098,-500.0,0.00019178,2]
[330272196,1719220244107,-500.0,0.00019178,2]
[330272197,1719220244115,-500.0,0.00019178,2]
[330272198,1719220244124,-500.0,0.00019178,2]
[330272199,1719220244134,-500.0,0.00019178,2]
[330272200,1719220244143,-500.0,0.00019178,2]
[330272201,1719220244152,-506.10291282,0.00019178,2]
[330272202,1719220244161,-500.0,0.00019178,2]
[330272203,1719220244170,-500.0,0.00019178,2]
[330272204,1719220244179,-689.02,0.00019178,2]
[330272205,1719220244188,-555.16,0.00019178,2]
[330272206,1719220244198,-500.0,0.00019178,2]
[330272207,1719220244206,-500.0,0.00019178,2]
[330272208,1719220244216,-500.0,0.00019178,2]
[330272209,1719220244225,-481.50490588,0.00019178,2]
[330272210,1719220244234,-500.0,0.00019178,2]
[330272211,1719220244243,-1268.17,0.00019178,2]
[330272212,1719220244253,-411.25844849,0.00019178,2]
[330272213,1719220244262,-508.15,0.00019178,2]
[330272214,1719220244271,-506.06,0.00019178,2]
[330272215,1719220244280,-500.0,0.00019178,2]
[330272216,1719220244292,-500.0,0.00019178,2]
[330272217,1719220244300,-500.0,0.00019178,2]
[330272218,1719220244309,-500.0,0.00019178,2]
[330272219,1719220244318,-500.0,0.00019178,2]
[330272220,1719220244326,-500.0,0.00019178,2]
[330272221,1719220244335,-500.0,0.00019178,2]
[330272222,1719220244344,-500.0,0.00019178,2]
[330272223,1719220244353,-500.0,0.00019178,2]
[330272224,1719220244362,-500.0,0.00019178,2]
[330272225,1719220244371,-500.0,0.00019178,2]
[330272226,1719220244380,-351.98195004,0.00019178,2]
[330272227,1719220244389,-500.0,0.00019178,2]
[330272228,1719220244398,-500.0,0.00019178,2]
[330272229,1719220244407,-500.0,0.00019178,2]
[330272230,1719220244416,-500.0,0.00019178,2]
[330272231,1719220244426,-500.0,0.00019178,2]
[330272232,1719220244435,-500.0,0.00019178,2]
[330272233,1719220244444,-500.0,0.00019178,2]
[330272234,1719220244454,-690.35,0.00019178,2]
[330272235,1719220244463,-500.0,0.00019178,2]
[330272236,1719220244472,-1376.24,0.00019178,2]
[330272237,1719220244481,-1043.58,0.00019178,2]
[330272238,1719220244490,-500.0,0.00019178,2]
[330272239,1719220244499,-928.98,0.00019178,2]
[330272240,1719220244509,-982.1,0.00019178,2]
[330272241,1719220244518,-500.0,0.00019178,2]
[330272242,1719220244527,-831.6,0.00019178,2]
[330272243,1719220244538,-554.06,0.00019178,2]
[330272244,1719220244547,-500.0,0.00019178,2]
[330272245,1719220244556,-500.0,0.00019178,2]
[330272246,1719220244565,-726.72,0.00019178,2]
[330272247,1719220244574,-660.7,0.00019178,2]
[330272248,1719220244584,-500.0,0.00019178,2]
[330272249,1719220244593,-500.0,0.00019178,2]
[330272250,1719220244602,-500.0,0.00019178,2]
[330272251,1719220244611,-689.04,0.00019178,2]
[330272252,1719220244620,-578.42680501,0.00019178,2]
[330272253,1719220244629,-500.0,0.00019178,2]
[330272254,1719220244638,-590.87771198,0.00019178,2]
[330272255,1719220244647,-500.0,0.00019178,2]
[330272256,1719220244657,-500.0,0.00019178,2]
[330272257,1719220244670,-500.0,0.00019178,2]
[330272258,1719220244679,-607.68,0.00019178,2]
[330272259,1719220244688,-500.0,0.00019178,2]
[330272260,1719220244697,-500.0,0.00019178,2]
[330272261,1719220244707,-500.0,0.00019178,2]
[330272262,1719220244716,-500.0,0.00019178,2]
[330272263,1719220244726,-691.63,0.00019178,2]
[330272264,1719220244735,-722.5,0.00019178,2]
[330272265,1719220244747,-500.0,0.00019178,2]
[330272266,1719220244756,-500.0,0.00019178,2]
[330272267,1719220244765,-595.29,0.00019178,2]
[330272268,1719220244774,-500.0,0.00019178,2]
[330272269,1719220244783,-500.0,0.00019178,2]
[330272270,1719220244795,-500.0,0.00019178,2]
[330272271,1719220244804,-500.0,0.00019178,2]
[330272272,1719220244813,-495.32677141,0.00019178,2]
[330272273,1719220244822,-500.0,0.00019178,2]
[330272274,1719220244831,-614.26,0.00019178,2]
[330272275,1719220244840,-500.0,0.00019178,2]
[330272276,1719220244849,-743.79,0.00019178,2]
[330272277,1719220244858,-500.0,0.00019178,2]
[330272278,1719220244870,-436.95491569,0.00019178,2]
[330272287,1719220245967,-63.04508431,0.00019178,2]
[330272288,1719220245976,-596.95179625,0.00019178,2]
[330272289,1719220245985,-1496.52,0.00019178,2]
[330272290,1719220246203,-609.09,0.00019178,2]
[330272291,1719220246212,-500.0,0.00019178,2]
[330272292,1719220246221,-500.0,0.00019178,2]
[330272293,1719220246230,-500.0,0.00019178,2]
[330272294,1719220246239,-315.0164018,0.00019178,2]
[330272295,1719220246248,-455.19055212,0.00019178,2]
[330272296,1719220246257,-500.0,0.00019178,2]
[330272297,1719220246266,-34.6407052,0.00019178,2]
[330272298,1719220246337,-584.7092948,0.00019178,2]
[330272299,1719220246346,-233.90388014,0.00019178,2]
[330272300,1719220246358,-266.09611986,0.00019178,2]
[330272301,1719220246367,-402.11684888,0.00019178,2]
[330272302,1719220246379,-179.3517286,0.00019178,2]
[330272303,1719220246388,-511.30212442,0.00019178,2]
[330272304,1719220246397,-500.0,0.00019178,2]
[330272305,1719220246406,-373.49614698,0.00019178,2]
[330272331,1719220313830,365.41,0.00025235,120]
[330272333,1719220366668,150.0,0.00029416,30]
[330272338,1719220439782,266.0,0.00029416,30]
[330272368,1719220557862,150.1,0.00029416,30]
[330272369,1719220559213,153.922203,0.00029416,30]
[330272370,1719220640948,151.0,0.00021272,120]
[330272372,1719220907035,174.34,0.00024962,120]
[330272394,1719220981849,-151.0,0.00021706,30]
[330272395,1719220981955,-1800.0,0.00023,24]
[330272396,1719220982058,-1800.0,0.00024,25]
[330272397,1719220982154,-1800.0,0.00025,26]
[330272398,1719220982177,-3209.35557353,0.00025,30]
[330272399,1719220982240,-150.0,0.0002563,60]
[330272400,1719220982268,-1800.0,0.00026,27]
[330272401,1719220982308,-251.0,0.0002663,120]
[330272402,1719220982333,-172.54,0.0002667,120]
[330272403,1719220982362,-1800.0,0.00027,28]
[330272404,1719220982383,-314.6615224,0.00027,90]
[330272405,1719220982410,-1208.0,0.00027164,30]
[330272406,1719220982438,-174.34,0.00027231,120]
[330272407,1719220982462,-292.47630776,0.0002739,25]
[330272408,1719220982484,-292.47630776,0.0002739,30]
[330272409,1719220982508,-2000.0,0.00027397,30]
[330272410,1719220982530,-2000.0,0.00027397,30]
[330272411,1719220982551,-2000.0,0.00027397,30]
[330272412,1719220982574,-2000.0,0.00027397,30]
[330272413,1719220982595,-2000.0,0.00027397,30]
[330272414,1719220982617,-2000.0,0.00027397,30]
[330272415,1719220982638,-2000.0,0.00027397,30]
[330272416,1719220982659,-2000.0,0.00027397,30]
[330272417,1719220982681,-2000.0,0.00027397,30]
[330272418,1719220982704,-2000.0,0.00027397,30]
[330272419,1719220982727,-2000.0,0.00027397,30]
[330272420,1719220982749,-2000.0,0.00027397,30]
[330272421,1719220982771,-1579.12265668,0.00027397,30]
[330272422,1719220982799,-244.01,0.00027397,30]
[330272423,1719220982821,-200.0,0.00027397,60]
[330272424,1719220982850,-365.41,0.00027529,120]
[330272425,1719220982871,-244.01,0.00027534,30]
[330272426,1719220982894,-244.01,0.00027671,30]
[330272427,1719220982918,-244.01,0.00027808,30]
[330272428,1719220982946,-244.01,0.00027945,30]
[330272429,1719220982970,-2100.6567159,0.00028,30]
[330272430,1719220982992,-631.88650449,0.00028,120]
[330272431,1719220983018,-244.01,0.00028082,30]
[330272432,1719220983041,-244.01,0.00028219,30]
[330272433,1719220983063,-157.61711519,0.00028297,120]
[330272434,1719220983085,-244.01,0.00028356,30]
[330272435,1719220983109,-244.01,0.00028493,30]
[330272436,1719220983133,-225.50672729,0.000285,120]
[330272437,1719220983156,-150.0,0.00028603,120]
[330272438,1719220983179,-244.01,0.0002863,30]
[330272439,1719220983206,-244.01,0.00028767,30]
[330272440,1719220983231,-1000.0,0.00028883,120]
[330272441,1719220983254,-244.01,0.00028904,30]
[330272443,1719221023512,292.47630776,0.0002739,30]
[330272444,1719221051453,500.0,0.000289,120]
[330272445,1719221086899,1208.0,0.00028289,30]
[330272446,1719221089482,151.0,0.00022605,30]
[330272447,1719221089535,151.0,0.00022153,120]
[330272448,1719221144836,200.0,0.00027397,60]
[330272452,1719221378537,2362.12071466,0.00029425,60]
[330272475,1719221432224,-156.1,0.00017199,2]
[330272476,1719221432233,-156.1,0.00017726,2]
[330272477,1719221432243,-1000.0,0.00017832,2]
[330272478,1719221432253,-1500.0,0.00017924,5]
[330272479,1719221432263,-205.39,0.0001798,2]
[330272480,1719221432275,-60.78736849,0.00018039,2]
[330272481,1719221432288,-189.21263151,0.00018039,2]
[330272482,1719221432298,-174.34,0.00018154,2]
[330272483,1719221432307,-499.99,0.00018154,2]
[330272484,1719221432317,-156.1,0.00018252,2]
[330272485,1719221432327,-365.41,0.00018352,2]
[330272486,1719221432337,-188.46,0.00018352,2]
[330272487,1719221432347,-200.540806,0.00018592,2]
[330272488,1719221432357,-11337.32980387,0.00018599,2]
[330272489,1719221432369,-1411.86486769,0.00018599,2]
[330272490,1719221432379,-2541.73,0.00018778,2]
[330272491,1719221432389,-150.99,0.00018778,2]
[330272492,1719221432399,-1453.04,0.00018778,2]
[330272493,1719221432410,-156.1,0.00018778,2]
[330272494,1719221432420,-300.0,0.000188,6]
[330272495,1719221432430,-5000.0,0.00018806,2]
[330272496,1719221432440,-200.540806,0.00018825,2]
[330272497,1719221432449,-600.0,0.000189,6]
[330272498,1719221432459,-152.3647633,0.00018968,2]
[330272499,1719221432469,-241.34252676,0.00018969,2]
[330272500,1719221432478,-1208.54198436,0.00018978,2]
[330272501,1719221432488,-1883.41218818,0.00018978,2]
[330272502,1719221432498,-3874.2394,0.00018978,2]
[330272503,1719221432508,-7034.8508,0.00018978,2]
[330272504,1719221432517,-212.0465,0.00018978,2]
[330272505,1719221432530,-7500.0,0.00018978,2]
[330272506,1719221432539,-200.540806,0.00019057,2]
[330272507,1719221432549,-253.06795732,0.00019077,2]
[330272508,1719221432557,-1217.95661579,0.00019078,2]
[330272509,1719221432566,-323.37121098,0.00019078,2]
[330272510,1719221432575,-1000.0,0.00019078,2]
[330272511,1719221432584,-7769.2748,0.00019078,2]
[330272512,1719221432594,-65997.48926565,0.00019078,2]
[330272513,1719221432606,-19909.87838524,0.00019078,2]
[330272514,1719221433797,-14092.63234911,0.00019078,2]
[330272515,1719221433806,-245000.0,0.00019078,2]
[330272516,1719221433815,-500.0,0.00019078,2]
[330272517,1719221433824,-1651.45983786,0.00019099,2]
[330272518,1719221433833,-176.45216287,0.00019099,2]
[330272519,1719221433842,-2883.6533784,0.0001911,2]
[330272520,1719221433852,-428.86463555,0.0001916,2]
[330272521,1719221433862,-156.45,0.00019168,2]
[330272522,1719221433873,-780.0,0.00019178,2]
[330272523,1719221433883,-500.0,0.00019178,2]
[330272524,1719221433893,-502.7010085,0.00019178,2]
[330272525,1719221433904,-517.75464508,0.00019178,2]
[330272526,1719221433915,-500.0,0.00019178,2]
[330272527,1719221433927,-666.23,0.00019178,2]
[330272528,1719221433939,-500.0,0.00019178,2]
[330272529,1719221433950,-1209.07,0.00019178,2]
[330272530,1719221433961,-500.0,0.00019178,2]
[330272531,1719221433972,-1731.28,0.00019178,2]
[330272532,1719221433983,-1285.84,0.00019178,2]
[330272533,1719221433994,-500.0,0.00019178,2]
[330272534,1719221434005,-1212.55,0.00019178,2]
[330272535,1719221434016,-500.0,0.00019178,2]
[330272536,1719221434039,-500.0,0.00019178,2]
[330272537,1719221434050,-500.0,0.00019178,2]
[330272538,1719221434061,-610.6,0.00019178,2]
[330272539,1719221434075,-500.0,0.00019178,2]
[330272540,1719221434088,-500.0,0.00019178,2]
[330272541,1719221434099,-226.48056294,0.00019178,2]
[330272542,1719221434111,-500.0,0.00019178,2]
[330272543,1719221434127,-581.28,0.00019178,2]
[330272544,1719221434138,-500.0,0.00019178,2]
[330272545,1719221434149,-500.0,0.00019178,2]
[330272546,1719221434161,-1276.05,0.00019178,2]
[330272547,1719221434172,-500.0,0.00019178,2]
[330272548,1719221434183,-39.11030483,0.00019178,2]
[330272549,1719221434198,-460.88969517,0.00019178,2]
[330272550,1719221434208,-360.83030483,0.00019178,2]
[330272551,1719221434222,-153.71969517,0.00019178,2]
[330272552,1719221434232,-500.0,0.00019178,2]
[330272553,1719221434242,-128.23050406,0.00019178,2]
[330272554,1719221434256,-371.76949594,0.00019178,2]
[330272555,1719221434267,-500.0,0.00019178,2]
[330272556,1719221434277,-707.98,0.00019178,2]
[330272557,1719221434287,-500.0,0.00019178,2]
[330272558,1719221434297,-50.70035694,0.00019178,2]
[330272559,1719221434310,-449.29964306,0.00019178,2]
[330272560,1719221434320,-377.83747979,0.00019178,2]
[330272561,1719221434334,-205.73252021,0.00019178,2]
[330272562,1719221434346,-500.0,0.00019178,2]
[330272563,1719221434356,-500.0,0.00019178,2]
[330272564,1719221434374,-500.0,0.00019178,2]
[330272565,1719221434385,-538.15,0.00019178,2]
[330272566,1719221434397,-500.0,0.00019178,2]
[330272567,1719221434408,-673.57,0.00019178,2]
[330272568,1719221434419,-650.34,0.00019178,2]
[330272569,1719221434429,-167.2554001,0.00019178,2]
[330272570,1719221434444,-332.7445999,0.00019178,2]
[330272571,1719221434454,-91.80167054,0.00019178,2]
[330272572,1719221434467,-408.19832946,0.00019178,2]
[330272573,1719221434477,-500.0,0.00019178,2]
[330272574,1719221434487,-500.0,0.00019178,2]
[330272575,1719221434498,-500.0,0.00019178,2]
[330272576,1719221434508,-500.0,0.00019178,2]
[330272577,1719221434519,-500.0,0.00019178,2]
[330272578,1719221434545,-500.0,0.00019178,2]
[330272579,1719221434557,-73.60167054,0.00019178,2]
[330272580,1719221434572,-426.39832946,0.00019178,2]
[330272581,1719221434582,-500.0,0.00019178,2]
[330272582,1719221434593,-501.95367559,0.00019178,2]
[330272583,1719221434604,-500.0,0.00019178,2]
[330272584,1719221434614,-518.60882894,0.00019178,2]
[330272585,1719221434624,-500.0,0.00019178,2]
[330272586,1719221434635,-681.7,0.00019178,2]
[330272587,1719221434644,-500.0,0.00019178,2]
[330272588,1719221434654,-500.0,0.00019178,2]
[330272589,1719221434664,-527.80373606,0.00019178,2]
[330272590,1719221434674,-500.0,0.00019178,2]
[330272591,1719221434685,-500.0,0.00019178,2]
[330272592,1719221434696,-501.50261637,0.00019178,2]
[330272593,1719221434707,-68.03281358,0.00019178,2]
[330272594,1719221434721,-418.90217464,0.00019178,2]
[330272595,1719221434735,-137.73722718,0.00019178,2]
[330272596,1719221434746,-532.33684758,0.00019178,2]
[330272597,1719221434757,-265.37544024,0.00019178,2]
[330272598,1719221434771,-234.62455976,0.00019178,2]
[330272599,1719221434782,-500.0,0.00019178,2]
[330272600,1719221434793,-500.0,0.00019178,2]
[330272601,1719221434805,-500.0,0.00019178,2]
[330272602,1719221434816,-500.0,0.00019178,2]
[330272603,1719221434826,-500.0,0.00019178,2]
[330272604,1719221434836,-524.55132908,0.00019178,2]
[330272605,1719221434847,-589.67848555,0.00019178,2]
[330272606,1719221434857,-528.79237272,0.00019178,2]
[330272607,1719221434867,-500.0,0.00019178,2]
[330272608,1719221434878,-500.0,0.00019178,2]
[330272609,1719221434888,-500.0,0.00019178,2]
[330272610,1719221434899,-500.0,0.00019178,2]
[330272611,1719221434910,-797.03,0.00019178,2]
[330272612,1719221434921,-500.0,0.00019178,2]
[330272613,1719221434932,-573.41,0.00019178,2]
[330272614,1719221434943,-500.0,0.00019178,2]
[330272615,1719221434954,-500.0,0.00019178,2]
[330272616,1719221434965,-500.0,0.00019178,2]
[330272617,1719221434976,-960.92,0.00019178,2]
[330272618,1719221434986,-500.0,0.00019178,2]
[330272619,1719221434998,-500.0,0.00019178,2]
[330272620,1719221435009,-535.25774067,0.00019178,2]
[330272621,1719221435021,-500.0,0.00019178,2]